bitfinex/quotes_SOLUSD_20250928
["timestamp","ask_amount","ask_price","bid_price","bid_amount"]
[1759080549797,0.71,204.96,204.95,2.67022178]
[1759080550020,38.6,204.96,204.95,2.67022178]
[1759080553396,39.29,204.96,204.95,2.67022178]
[1759080554596,38.6,204.96,204.95,2.67022178]
[1759080554903,38.56,204.96,204.95,2.67022178]
[1759080557120,0.69,204.97,204.95,2.67022178]
[1759080557419,38.52,204.96,204.94,18.47506956]
[1759080557585,38.52,204.96,204.95,2.67022178]
[1759080559002,39.21,204.96,204.95,2.67022178]
[1759080560619,0.69,204.96,204.95,16.26581579]
[1759080561719,0.69,204.96,204.95,13.59559401]
[1759080561897,0.69,204.96,204.95,16.26581579]
[1759080562213,0.7,204.99,204.95,21.14504851]
[1759080562417,38.44,204.98,204.97,2.67022178]
[1759080563211,39.14,204.98,204.97,2.67022178]
[1759080565720,0.7,204.98,204.97,2.67022178]
[1759080566031,39.12,204.98,204.97,2.67022178]
[1759080567025,0.7,205.0,204.97,7.54892155]
[1759080567222,39.1,204.99,204.97,7.54892155]
[1759080567426,2.67022178,205.04,204.98,2.67022178]
[1759080567613,38.4,205.03,204.98,2.67022178]
[1759080568030,0.7,205.02,204.98,2.67022178]
[1759080568234,2.67022178,205.0,204.94,2.67022178]
[1759080568514,0.7,204.99,204.95,2.67022178]
[1759080568739,0.7,204.98,204.95,2.67022178]
[1759080568919,39.1,204.97,204.95,2.67022178]
[1759080569120,0.7,204.96,204.95,2.67022178]
[1759080569541,39.08,204.96,204.95,2.67022178]
[1759080571124,39.06,204.96,204.94,2.67022178]
[1759080571324,0.7,204.95,204.94,2.67022178]
[1759080571744,0.7,204.95,204.93,26.0]
[1759080572041,39.06,204.94,204.93,2.67022178]
[1759080572935,0.7,204.94,204.93,2.67022178]
[1759080573144,39.06,204.94,204.93,2.67022178]
[1759080574244,39.04,204.94,204.93,2.67022178]
[1759080576355,39.04,204.94,204.92,2.67022178]
[1759080576643,0.7,204.93,204.9,4.88042947]
[1759080576852,0.7,204.93,204.92,2.67022178]
[1759080578336,38.34,204.94,204.92,2.67022178]
[1759080578854,0.7,204.93,204.92,2.67022178]
[1759080579061,0.7,204.97,204.92,7.55017493]
[1759080579352,38.98,204.96,204.94,2.67022178]
[1759080579543,0.7,204.95,204.94,2.67022178]
[1759080580061,38.98,204.95,204.94,2.67022178]
[1759080581757,0.7,204.95,204.94,2.67022178]
[1759080582052,38.96,204.95,204.93,4.87964466]
[1759080582238,38.96,204.95,204.94,2.67022178]
[1759080583150,0.7,204.95,204.94,2.67022178]
[1759080583356,38.94,204.95,204.94,2.67022178]
[1759080584947,38.94,204.95,204.88,13.59559401]
[1759080585140,0.7,204.94,204.92,2.67022178]
[1759080585348,38.22,204.93,204.92,2.67022178]
[1759080586054,38.22,204.93,204.92,7.55017493]
[1759080588953,38.92,204.93,204.92,7.55017493]
[1759080590160,0.7,204.93,204.91,2.67022178]
[1759080590355,0.7,204.92,204.91,16.26581579]
[1759080590537,38.88,204.92,204.91,16.26581579]
[1759080591559,38.18,204.93,204.91,16.26581579]
[1759080592274,38.88,204.93,204.91,16.26581579]
[1759080592563,38.88,204.93,204.92,2.67022178]
[1759080593047,38.86,204.93,204.92,2.67022178]
[1759080594468,0.7,204.93,204.92,2.67022178]
[1759080594766,38.86,204.93,204.92,2.67022178]
[1759080595367,0.7,204.93,204.91,13.59559401]
[1759080595550,38.86,204.92,204.91,16.26581579]
[1759080596269,38.86,204.92,204.91,15.30610276]
[1759080596476,0.7,204.92,204.91,15.30610276]
[1759080596774,38.86,204.92,204.91,15.30610276]
[1759080597757,38.16,204.92,204.91,15.30610276]
[1759080598164,38.16,204.92,204.91,20.18629406]
[1759080598357,0.7,204.94,204.91,20.18629406]
[1759080598571,38.86,204.93,204.92,1.71050875]
[1759080598774,38.16,204.93,204.91,18.47578531]
[1759080598958,38.86,204.93,204.92,1.71050875]
[1759080599359,38.86,204.93,204.91,18.47578531]
[1759080599559,38.86,204.93,204.92,1.71050875]
[1759080600878,0.7,204.93,204.92,1.71050875]
[1759080601082,0.7,204.93,204.91,1.71050875]
[1759080601284,0.7,204.92,204.91,1.71050875]
[1759080601589,38.86,204.92,204.91,1.71050875]
[1759080602594,0.7,204.92,204.89,16.39156285]
[1759080602763,0.7,204.94,204.91,1.71050875]
[1759080602962,0.7,204.93,204.92,1.71050875]
[1759080603165,0.7,204.93,204.91,1.71050875]
[1759080603373,38.86,204.92,204.9,15.30610276]
[1759080603584,38.86,204.91,204.9,13.59559401]
[1759080603780,0.7,204.91,204.9,15.30610276]
[1759080608472,38.16,204.92,204.88,19.56192525]
[1759080608786,38.86,204.91,204.9,1.71050875]
[1759080610073,38.86,204.91,204.9,6.59093822]
[1759080610398,38.16,204.91,204.9,20.18653223]
[1759080610580,38.86,204.92,204.9,20.18653223]
[1759080610773,0.7,204.92,204.9,18.47602348]
[1759080610972,38.86,204.92,204.91,1.71050875]
[1759080611589,38.86,204.92,204.9,18.47602348]
[1759080611590,0.7,204.92,204.9,13.59559401]
[1759080611894,38.16,204.92,204.91,1.71050875]
[1759080612394,38.83,204.92,204.91,1.71050875]
[1759080613673,0.67,204.92,204.91,1.71050875]
[1759080613873,38.83,204.92,204.91,1.71050875]
[1759080615712,38.83,204.92,204.9,15.30610276]
[1759080615997,0.67,204.91,204.9,15.30610276]
[1759080617702,0.67,204.91,204.9,20.18653223]
[1759080617880,38.16,204.92,204.9,20.18653223]
[1759080618080,0.67,204.92,204.91,1.71050875]
[1759080618287,38.83,204.92,204.91,1.71050875]
[1759080618487,0.67,204.92,204.91,1.71050875]
[1759080618679,0.67,204.98,204.92,13.59559401]
[1759080619006,0.67,205.03,204.98,13.59559401]
[1759080619201,38.83,205.02,205.01,1.71050875]
[1759080620122,0.67,205.02,205.01,1.71050875]
[1759080620606,38.83,205.02,205.01,1.71050875]
[1759080621184,38.83,205.02,204.99,14.6753088]
[1759080621492,38.16,205.02,205.01,1.71050875]
[1759080621989,38.81,205.02,205.01,1.71050875]
[1759080622383,0.65,205.02,205.01,1.71050875]
[1759080622582,38.79,205.02,205.01,1.71050875]
[1759080622798,0.65,205.02,205.01,1.71050875]
[1759080623098,38.79,205.02,205.01,1.71050875]
[1759080624488,0.65,205.02,205.01,1.71050875]
[1759080624689,38.79,205.02,205.01,1.71050875]
[1759080625193,0.65,205.02,205.01,1.71050875]
[1759080625398,38.79,205.02,205.01,1.71050875]
[1759080625996,0.65,205.05,205.01,20.18391359]
[1759080626197,0.65,205.07,205.04,1.71050875]
[1759080626390,0.65,205.07,205.06,1.71050875]
[1759080626806,38.79,205.07,205.06,1.71050875]
[1759080628402,0.65,205.07,205.06,1.71050875]
[1759080628706,38.79,205.07,205.06,1.71050875]
[1759080631288,38.12,205.08,205.06,1.71050875]
[1759080631488,38.12,205.08,205.07,1.71050875]
[1759080631693,76.26,205.08,205.07,1.71050875]
[1759080631908,76.91,205.08,205.07,1.71050875]
[1759080633927,76.89,205.08,205.07,1.71050875]
[1759080634108,38.77,205.08,205.07,1.71050875]
[1759080634310,76.89,205.08,205.07,1.71050875]
[1759080635127,38.77,205.08,205.07,1.71050875]
[1759080635333,76.89,205.08,205.07,1.71050875]
[1759080635713,38.77,205.08,205.03,1.71050875]
[1759080635909,0.65,205.07,205.02,13.59559401]
[1759080636246,0.65,205.07,205.06,1.71050875]
[1759080636531,38.87,205.07,205.06,1.71050875]
[1759080637036,38.22,205.07,205.06,1.71050875]
[1759080637537,38.87,205.07,205.06,1.71050875]
[1759080637712,0.65,205.07,205.06,1.71050875]
[1759080637912,38.87,205.07,205.06,1.71050875]
[1759080638728,0.65,205.07,204.96,4.87900078]
[1759080638931,2.36050875,205.06,205.0,1.71050875]
[1759080639235,2.36050875,205.05,204.99,1.71050875]
[1759080639414,38.85,205.04,204.99,1.71050875]
[1759080639607,0.65,205.03,204.98,1.71050875]
[1759080639808,0.65,205.02,204.97,1.71050875]
[1759080640029,38.85,205.01,204.97,1.71050875]
[1759080640214,38.85,205.0,204.97,1.71050875]
[1759080640419,0.65,204.99,204.97,1.71050875]
[1759080640621,0.65,204.98,204.97,1.71050875]
[1759080641028,38.83,204.98,204.97,1.71050875]
[1759080641210,38.83,204.98,204.95,1.71050875]
[1759080641408,0.65,204.97,204.91,13.59559401]
[1759080641608,0.65,204.96,204.95,1.71050875]
[1759080641922,0.65,204.98,204.95,1.71050875]
[1759080642128,38.83,204.97,204.96,1.71050875]
[1759080642932,14.67746275,205.01,204.96,1.71050875]
[1759080643115,1.71050875,205.03,205.0,1.71050875]
[1759080643116,0.65,205.03,205.0,1.71050875]
[1759080643436,14.67746275,205.04,204.97,13.59559401]
[1759080643635,64.12,205.08,205.03,1.71050875]
[1759080643952,27.71050875,205.04,204.94,13.59559401]
[1759080644231,0.65,205.03,204.98,1.71050875]
[1759080644408,14.67459095,205.07,205.01,1.71050875]
[1759080644409,38.83,205.02,205.01,1.71050875]
[1759080645515,38.83,205.02,204.94,18.47507093]
[1759080645719,38.81,205.01,205.0,1.71050875]
[1759080646314,0.65,205.01,205.0,1.71050875]
[1759080646529,38.81,205.01,205.0,1.71050875]
[1759080646727,0.65,205.01,205.0,1.71050875]
[1759080646925,0.65,205.03,205.0,1.71050875]
[1759080647132,40.67459095,205.07,205.02,1.71050875]
[1759080647322,38.14,205.06,205.02,1.71050875]
[1759080647728,0.65,205.05,205.02,1.71050875]
[1759080648034,38.14,205.06,205.02,1.71050875]
[1759080648035,0.65,205.04,205.02,1.71050875]
[1759080648213,0.65,205.03,205.01,1.71050875]
[1759080648412,38.79,205.02,205.01,1.71050875]
[1759080649740,38.79,205.02,204.97,13.59559401]
[1759080649938,38.14,205.02,205.01,1.71050875]
[1759080650518,38.79,205.02,205.01,1.71050875]
[1759080652520,0.65,205.02,205.01,1.71050875]
[1759080652717,38.77,205.02,205.01,1.71050875]
[1759080652937,38.77,205.02,205.0,1.71050875]
[1759080653240,0.67,205.01,205.0,1.71050875]
[1759080653541,38.79,205.01,205.0,1.71050875]
[1759080655113,38.79,205.01,204.98,1.71050875]
[1759080655314,0.67,205.0,204.93,37.72172078]
[1759080655525,0.67,205.03,204.99,1.71050875]
[1759080655725,0.67,205.03,205.02,1.71050875]
[1759080655932,38.79,205.03,205.02,1.71050875]
[1759080656446,38.79,205.03,204.94,4.87947692]
[1759080656740,1.71050875,205.01,204.95,1.71050875]
[1759080656920,38.79,205.0,204.95,1.71050875]
[1759080657120,0.67,204.99,204.95,1.71050875]
[1759080657320,0.67,204.98,204.96,1.71050875]
[1759080657550,38.79,204.97,204.96,1.71050875]
[1759080658451,38.79,204.97,204.96,2.67165178]
[1759080664130,38.79,204.97,204.95,2.67165178]
[1759080664450,0.67,204.96,204.95,2.67165178]
[1759080665631,38.81,204.96,204.91,4.88018524]
[1759080665830,0.67,205.01,204.95,2.67165178]
[1759080666033,0.67,205.0,204.98,2.67165178]
[1759080666250,38.81,204.99,204.98,2.67165178]
[1759080666640,38.14,204.99,204.98,2.67165178]
[1759080666946,38.14,204.99,204.98,16.37724579]
[1759080667145,0.67,205.04,204.99,13.59559401]
[1759080667355,38.14,205.03,205.02,2.67165178]
[1759080667537,38.81,205.03,205.02,2.67165178]
[1759080668250,26.0,205.05,205.02,2.67165178]
[1759080668551,26.67,205.05,205.04,2.67165178]
[1759080668744,64.81,205.05,205.04,2.67165178]
[1759080669051,26.67,205.05,205.04,2.67165178]
[1759080669245,64.81,205.05,205.04,2.67165178]
[1759080670346,64.81,205.05,204.99,4.87828289]
[1759080670550,38.81,205.04,205.0,2.67165178]
[1759080670740,38.81,205.04,204.93,14.87052115]
[1759080670741,38.81,205.04,204.99,2.67165178]
[1759080670948,0.67,205.03,205.0,2.67165178]
[1759080671153,38.14,205.04,205.0,2.67165178]
[1759080671358,0.67,205.02,205.0,2.67165178]
[1759080671561,38.14,205.04,205.0,2.67165178]
[1759080671762,0.67,205.01,205.0,2.67165178]
[1759080681679,2.67165178,205.08,205.0,2.67165178]
[1759080681680,0.66,205.02,205.0,2.67165178]
[1759080681885,38.12,205.01,204.98,4.87852473]
[1759080682065,0.66,205.02,204.98,4.87852473]
[1759080682268,3.28832889,205.07,204.99,13.70559401]
[1759080682269,38.12,205.0,204.99,13.70559401]
[1759080682469,38.12,205.01,204.99,13.70559401]
[1759080683071,38.12,205.01,205.0,2.67165178]
[1759080683862,38.12,205.01,205.0,7.54970056]
[1759080685380,38.12,205.01,204.99,18.58386601]
[1759080685579,38.12,205.01,205.0,2.67165178]
[1759080685775,0.66,205.04,205.0,7.54960027]
[1759080685983,26.0,205.08,205.03,2.67165178]
[1759080686183,38.12,205.07,205.04,2.67165178]
[1759080686369,2.67165178,205.05,204.99,2.67165178]
[1759080686569,0.66,205.04,205.0,2.67165178]
[1759080686761,0.66,205.03,205.0,2.67165178]
[1759080686961,38.78,205.02,205.01,2.67165178]
[1759080687876,0.66,205.02,205.01,2.67165178]
[1759080688079,38.12,205.02,205.01,2.67165178]
[1759080688386,0.66,205.04,205.01,2.67165178]
[1759080688685,26.0,205.08,205.03,2.67165178]
[1759080688881,41.41039156,205.07,205.03,2.67165178]
[1759080689093,38.12,205.07,205.03,2.67165178]
[1759080689390,0.66,205.06,205.03,2.67165178]
[1759080689689,38.78,205.05,205.02,2.67165178]
[1759080689924,0.66,205.04,205.02,2.67165178]
[1759080690088,0.66,205.03,205.02,2.67165178]
[1759080690290,0.66,205.03,205.01,2.67165178]
[1759080690589,0.66,205.02,205.01,2.67165178]
[1759080690783,2.67165178,205.07,205.01,2.67165178]
[1759080690980,0.66,205.04,205.02,2.67165178]
[1759080691182,0.66,205.03,205.02,2.67165178]
[1759080691977,0.66,205.03,204.96,30.87896399]
[1759080692177,38.78,205.02,205.0,2.67165178]
[1759080692592,0.66,205.01,205.0,2.67165178]
[1759080693196,0.66,205.01,204.97,13.59559401]
[1759080693197,0.66,205.01,204.99,2.67165178]
[1759080693373,0.66,205.0,204.99,2.67165178]
[1759080694184,38.78,205.0,204.99,2.67165178]
[1759080696406,38.78,205.0,204.96,30.87896399]
[1759080696697,38.12,205.0,204.99,2.67165178]
[1759080697097,38.78,205.0,204.99,2.67165178]
[1759080697906,38.1,205.0,204.99,2.67165178]
[1759080698897,0.66,205.02,204.99,2.67165178]
[1759080699085,38.76,205.01,204.98,4.87849881]
[1759080699607,38.76,205.01,205.0,2.67165178]
[1759080701281,0.66,205.01,205.0,2.67165178]
[1759080701505,38.76,205.01,205.0,2.67165178]
[1759080702409,0.66,205.03,205.0,2.67165178]
[1759080702588,38.1,205.01,204.98,4.87849881]
[1759080702985,38.76,205.01,204.98,4.87849881]
[1759080703187,0.66,205.0,204.98,4.87849881]
[1759080703388,0.66,204.99,204.96,30.8787904]
[1759080703618,38.1,205.01,204.9,12.20061713]
[1759080703619,0.66,204.98,204.9,12.20061713]
[1759080703904,0.66,204.98,204.97,2.67165178]
[1759080704105,0.66,205.0,204.97,2.67165178]
[1759080704312,0.66,205.0,204.99,2.67165178]
[1759080704984,26.0,205.04,204.99,2.67165178]
[1759080705190,38.1,205.0,204.95,0.11]
[1759080705388,38.1,204.99,204.96,4.87900078]
[1759080706093,38.76,204.99,204.93,0.11]
[1759080706314,38.76,204.99,204.98,2.67165178]
[1759080707106,0.66,204.99,204.98,2.67165178]
[1759080707297,38.76,204.99,204.98,2.67165178]
[1759080707696,0.66,204.99,204.98,2.67165178]
[1759080707912,38.76,204.99,204.98,2.67165178]
[1759080708497,38.1,204.99,204.98,2.67165178]
[1759080708719,38.76,204.99,204.98,2.67165178]
[1759080713630,26.0,205.03,204.98,2.67165178]
[1759080713824,0.72,205.01,205.0,2.67165178]
[1759080714026,38.82,205.01,205.0,2.67165178]
[1759080714219,0.72,205.01,205.0,2.67165178]
[1759080714417,38.82,205.01,205.0,2.67165178]
[1759080716529,38.82,205.01,204.93,16.26724579]
[1759080716530,38.82,205.01,204.96,2.67165178]
[1759080716729,0.72,205.0,204.96,2.67165178]
[1759080717037,0.72,205.0,204.99,2.67165178]
[1759080717217,41.43736257,205.0,204.99,2.67165178]
[1759080717526,42.15736257,205.0,204.99,2.67165178]
[1759080717727,38.08,205.0,204.99,2.67165178]
[1759080718033,41.43711742,205.0,204.99,2.67165178]
[1759080718234,41.43711742,205.0,204.99,1.70916476]
[1759080718436,38.08,205.0,204.99,1.70916476]
[1759080718623,0.72,205.01,204.99,1.70916476]
[1759080718824,0.72,205.01,204.93,52.18798976]
[1759080718825,38.08,205.0,204.97,4.87876274]
[1759080719022,26.0,205.03,204.97,4.87876274]
[1759080719226,42.15694454,205.02,204.98,13.59559401]
[1759080719424,38.8,205.01,204.98,13.59559401]
[1759080720136,38.8,205.01,205.0,1.70916476]
[1759080721146,38.08,205.01,205.0,1.70916476]
[1759080721723,0.72,205.03,205.0,6.58719764]
[1759080721930,0.72,205.03,205.02,1.70916476]
[1759080722131,42.15689765,205.03,205.02,1.70916476]
[1759080723914,42.15689765,205.03,205.01,1.70916476]
[1759080724115,0.72,205.02,205.01,1.70916476]
[1759080725120,38.8,205.02,205.01,1.70916476]
[1759080728239,26.0,205.07,205.01,1.70916476]
[1759080728542,0.72,205.03,205.0,4.87800527]
[1759080728746,38.08,205.02,205.0,4.87800527]
[1759080728950,0.72,205.03,204.99,4.87828674]
[1759080729244,38.08,205.02,204.99,4.87828674]
[1759080729745,38.08,205.02,205.01,1.70916476]
[1759080729938,38.8,205.02,205.01,1.70916476]
[1759080730140,0.72,205.02,205.01,1.70916476]
[1759080730319,38.8,205.02,205.01,1.70916476]
[1759080732420,13.59559401,205.09,205.01,6.58697559]
[1759080732634,7.33046475,205.08,205.06,1.70916476]
[1759080732834,4.03715133,205.07,205.06,1.70916476]
[1759080733131,42.09715133,205.07,205.06,1.70916476]
[1759080734037,4.03715133,205.07,205.06,1.70916476]
[1759080734349,42.09715133,205.07,205.06,1.70916476]
[1759080735256,38.74,205.07,205.06,1.70916476]
[1759080739144,0.68,205.07,205.06,1.70916476]
[1759080739338,38.74,205.07,205.06,1.70916476]
[1759080744759,38.74,205.07,205.03,4.87731005]
[1759080744955,0.7,205.06,205.02,13.59559401]
[1759080745259,0.7,205.06,205.05,1.70916476]
[1759080745461,0.7,205.05,205.0,14.67172026]
[1759080745763,38.74,205.04,205.02,1.70916476]
[1759080745958,0.7,205.03,205.02,1.70916476]
[1759080746158,38.74,205.04,205.02,1.70916476]
[1759080746367,38.74,205.04,205.03,1.70916476]
[1759080748457,0.7,205.04,205.03,1.70916476]
[1759080748661,38.74,205.04,205.03,1.70916476]
[1759080748864,38.74,205.04,205.02,1.70916476]
[1759080749868,1.70916476,205.09,204.96,1.70916476]
[1759080749869,43.79960464,205.03,204.96,1.70916476]
[1759080750074,1.70916476,205.01,204.95,15.41475877]
[1759080750249,0.7,205.0,204.96,1.70916476]
[1759080750570,0.7,204.99,204.96,1.70916476]
[1759080750873,0.7,205.01,204.98,1.70916476]
[1759080751169,38.74,205.0,204.99,1.70916476]
[1759080751565,38.04,205.0,204.99,1.70916476]
[1759080752757,1.70916476,205.06,204.99,1.70916476]
[1759080752758,0.7,205.06,204.99,6.69740631]
[1759080752956,137.10790427,205.13,205.05,1.70916476]
[1759080752957,0.7,205.08,205.05,1.70916476]
[1759080753165,3.28640978,205.11,205.07,1.70916476]
[1759080753374,41.38988187,205.1,205.08,1.70916476]
[1759080753550,38.04,205.1,205.08,1.70916476]
[1759080753752,0.7,205.09,205.08,1.70916476]
[1759080753957,38.74,205.09,205.08,1.70916476]
[1759080754157,0.7,205.09,205.08,1.70916476]
[1759080754357,16.88120046,205.12,205.08,1.70916476]
[1759080754571,0.2,205.13,205.11,1.70916476]
[1759080754872,0.2,205.13,205.12,1.70916476]
[1759080755057,38.24,205.13,205.12,1.70916476]
[1759080755755,0.2,205.13,205.12,1.70916476]
[1759080755959,34.14,205.13,205.12,1.70916476]
[1759080756163,0.2,205.13,205.12,27.70916476]
[1759080756458,32.44,205.13,205.12,27.70916476]
[1759080756861,0.2,205.13,205.12,1.70916476]
[1759080758151,0.2,205.13,205.12,20.17995377]
[1759080759178,0.2,205.13,205.12,20.28995377]
[1759080759963,0.2,205.13,205.12,13.59559401]
[1759080760273,0.2,205.13,205.12,20.17995377]
[1759080761473,0.2,205.14,205.13,13.59559401]
[1759080762174,0.2,205.14,205.13,20.17971611]
[1759080763272,0.9,205.14,205.13,29.96859043]
[1759080763476,0.9,205.14,205.13,15.30475877]
[1759080763685,0.2,205.14,205.13,15.30475877]
[1759080764267,0.2,205.14,205.13,20.28971611]
[1759080764456,0.2,205.14,205.13,27.01637515]
[1759080764662,0.2,205.14,205.13,33.13366629]
[1759080764879,0.2,205.14,205.13,34.84283105]
[1759080770678,0.2,205.14,205.13,20.17971611]
[1759080771787,0.9,205.14,205.13,20.17971611]
[1759080772092,0.9,205.14,205.13,1.70916476]
[1759080775301,0.9,205.14,205.05,13.59559401]
[1759080775600,38.7,205.13,205.11,1.70916476]
[1759080775767,0.7,205.12,205.11,1.70916476]
[1759080776495,0.7,205.12,205.1,1.70916476]
[1759080776796,38.7,205.11,205.09,1.70916476]
[1759080776986,0.7,205.1,205.09,1.70916476]
[1759080779992,0.7,205.1,205.04,44.47267925]
[1759080780194,0.7,205.09,205.04,47.14106475]
[1759080780380,37.98,205.11,205.08,2.6683855]
[1759080780579,37.98,205.11,205.09,2.6683855]
[1759080781097,0.7,205.1,205.08,2.6683855]
[1759080781300,0.7,205.09,204.99,18.47388075]
[1759080781600,40.6483855,205.1,204.99,18.47388075]
[1759080781601,0.7,205.08,205.03,2.6683855]
[1759080781797,0.7,205.07,205.03,2.6683855]
[1759080782102,0.7,205.06,205.03,2.6683855]
[1759080782279,0.7,205.05,205.03,2.6683855]
[1759080782479,37.98,205.06,205.04,2.6683855]
[1759080783088,0.7,205.05,205.04,2.6683855]
[1759080783501,28.6683855,205.12,205.04,2.6683855]
[1759080783695,0.7,205.08,205.06,2.6683855]
[1759080783904,38.68,205.07,205.06,2.6683855]
[1759080784110,0.7,205.07,205.06,2.6683855]
[1759080784410,38.68,205.07,205.06,2.6683855]
[1759080786014,38.68,205.07,205.05,2.6683855]
[1759080786209,0.7,205.06,205.05,2.6683855]
[1759080787299,38.68,205.06,205.04,2.6683855]
[1759080787495,2.6683855,205.11,205.05,2.6683855]
[1759080788121,38.68,205.1,205.05,2.6683855]
[1759080788421,0.7,205.09,205.05,2.6683855]
[1759080788726,0.7,205.08,205.05,2.6683855]
[1759080789025,0.7,205.07,205.05,2.6683855]
[1759080789227,0.7,205.06,205.05,2.6683855]
[1759080790902,0.7,205.06,205.03,2.6683855]
[1759080791100,38.68,205.05,205.03,2.6683855]
[1759080791407,0.7,205.04,205.03,2.6683855]
[1759080791718,38.68,205.04,205.02,2.6683855]
[1759080791911,0.7,205.03,205.02,2.6683855]
[1759080793225,38.68,205.03,205.01,2.6683855]
[1759080793411,28.6683855,205.08,205.02,2.6683855]
[1759080793612,37.98,205.07,205.01,2.6683855]
[1759080793824,37.98,205.06,205.02,2.6683855]
[1759080794023,0.7,205.05,205.01,2.6683855]
[1759080794199,0.7,205.04,205.01,2.6683855]
[1759080794401,38.68,205.03,205.01,2.6683855]
[1759080794711,38.68,205.02,205.01,2.6683855]
[1759080794898,0.7,205.02,205.01,2.6683855]
[1759080795097,38.68,205.02,205.01,2.6683855]
[1759080795712,38.68,205.02,205.0,2.6683855]
[1759080795915,0.7,205.01,204.99,2.6683855]
[1759080796116,0.7,205.0,204.99,2.6683855]
[1759080796321,0.7,205.0,204.93,13.59559401]
[1759080796514,38.68,204.99,204.97,2.6683855]
[1759080796720,0.7,204.98,204.97,2.6683855]
[1759080796920,38.68,204.98,204.97,2.6683855]
[1759080798414,0.7,204.98,204.97,2.6683855]
[1759080798618,38.68,204.98,204.97,2.6683855]
[1759080800636,38.68,204.98,204.96,2.6683855]
[1759080800934,0.67,204.97,204.96,2.6683855]
[1759080801435,38.65,204.97,204.96,2.6683855]
[1759080801728,0.67,204.97,204.95,2.6683855]
[1759080801933,37.98,204.96,204.95,2.6683855]
[1759080803214,2.6683855,205.02,204.91,18.58575149]
[1759080803412,0.67,204.96,204.95,2.6683855]
[1759080803633,0.67,204.97,204.95,2.6683855]
[1759080803928,37.98,204.96,204.95,2.6683855]
[1759080804334,0.67,204.96,204.95,2.6683855]
[1759080804636,38.65,204.96,204.95,2.6683855]
[1759080805438,38.65,204.96,204.91,18.58577079]
[1759080805734,37.98,204.96,204.95,2.6683855]
[1759080805935,0.67,204.97,204.95,2.6683855]
[1759080806115,37.98,204.96,204.95,2.6683855]
[1759080806446,0.67,205.03,204.96,13.59559401]
[1759080806610,17.34220351,205.08,205.02,2.6683855]
[1759080806812,146.39559401,205.11,204.96,13.59559401]
[1759080806813,0.67,205.07,205.05,2.6683855]
[1759080807030,3.327498,205.1,205.06,2.6683855]
[1759080807211,0.67,205.09,205.06,2.6683855]
[1759080807532,38.65,205.08,205.07,2.6683855]
[1759080807837,0.67,205.1,205.07,2.6683855]
[1759080808142,0.67,205.1,205.09,2.6683855]
[1759080808441,38.65,205.1,205.09,2.6683855]
[1759080809015,0.67,205.1,205.09,2.6683855]
[1759080809210,38.65,205.1,205.09,2.6683855]
[1759080809635,0.67,205.1,205.09,2.6683855]
[1759080809942,38.65,205.1,205.08,2.6683855]
[1759080810842,37.98,205.09,205.08,2.6683855]
[1759080811430,38.65,205.09,205.08,2.6683855]
[1759080813515,0.67,205.09,205.08,2.6683855]
[1759080813718,38.65,205.09,205.08,2.6683855]
[1759080814126,0.67,205.09,205.08,2.6683855]
[1759080814328,38.65,205.09,205.08,2.6683855]
[1759080815933,0.67,205.09,205.08,2.6683855]
[1759080816136,38.65,205.09,205.07,2.6683855]
[1759080816333,0.67,205.08,205.07,2.6683855]
[1759080816951,0.67,205.08,205.04,2.6683855]
[1759080817122,0.67,205.07,204.96,12.3070105]
[1759080817437,2.6683855,205.09,205.02,2.6683855]
[1759080817438,38.63,205.06,205.02,2.6683855]
[1759080817645,0.67,205.05,205.02,2.6683855]